bitfinex-derivatives/quotes_BTCF0:USTF0_20240917
["timestamp","ask_amount","ask_price","bid_price","bid_amount"]
[1726608297768,0.23047294,60377.0,60376.0,0.082793]
[1726608297967,0.32183736,60377.0,60376.0,0.082793]
[1726608298361,0.13982742,60377.0,60376.0,0.082793]
[1726608299463,0.12983103,60377.0,60376.0,0.082793]
[1726608300167,0.1298308,60377.0,60376.0,0.082793]
[1726608300372,0.18720062,60377.0,60376.0,0.082793]
[1726608300571,0.1298308,60377.0,60376.0,0.082793]
[1726608300867,0.07901104,60377.0,60376.0,0.265586]
[1726608301068,0.07901104,60377.0,60376.0,1.45527904]
[1726608301269,0.07901104,60377.0,60376.0,1.37248604]
[1726608301667,0.07901104,60377.0,60376.0,1.50107904]
[1726608301967,0.07901104,60377.0,60376.0,1.86187904]
[1726608302167,0.14873407,60386.0,60385.0,0.082781]
[1726608302371,0.19954483,60386.0,60385.0,0.443581]
[1726608302668,0.19954483,60386.0,60385.0,0.43779678]
[1726608302669,0.05081076,60386.0,60385.0,0.43779678]
[1726608303172,0.15121828,60387.0,60386.0,0.082779]
[1726608303472,0.00248421,60387.0,60386.0,0.082779]
[1726608304774,0.05329332,60387.0,60386.0,0.182779]
[1726608305162,0.05529332,60387.0,60386.0,0.183779]
[1726608305363,0.05529332,60387.0,60386.0,0.19363151]
[1726608305566,0.00448421,60387.0,60386.0,0.083779]
[1726608305763,0.17004021,60387.0,60386.0,0.002]
[1726608305963,0.08726221,60387.0,60386.0,0.002]
[1726608307178,0.17004021,60387.0,60386.0,0.002]
[1726608307369,0.08726221,60387.0,60386.0,0.002]
[1726608311676,0.17004021,60387.0,60386.0,0.002]
[1726608311876,0.08726221,60387.0,60386.0,0.002]
[1726608312664,0.11924048,60387.0,60386.0,0.002]
[1726608313978,0.20201848,60387.0,60386.0,0.002]
[1726608314190,0.11924048,60387.0,60386.0,0.002]
[1726608314379,0.20201848,60387.0,60386.0,0.002]
[1726608314878,0.11924048,60387.0,60386.0,0.002]
[1726608317177,0.20201848,60387.0,60386.0,0.002]
[1726608317675,0.15978094,60387.0,60386.0,0.002]
[1726608319887,0.24255894,60387.0,60386.0,0.002]
[1726608320180,0.15978094,60387.0,60386.0,0.002]
[1726608320380,0.24255894,60387.0,60386.0,0.002]
[1726608320779,0.17004021,60387.0,60386.0,0.002]
[1726608321780,0.08726221,60387.0,60386.0,0.002]
[1726608322177,0.17004021,60387.0,60386.0,0.002]
[1726608322376,0.08726221,60387.0,60386.0,0.002]
[1726608322778,0.11924167,60387.0,60386.0,0.002]
[1726608330788,0.20201967,60387.0,60386.0,0.002]
[1726608331093,0.11924167,60387.0,60386.0,0.002]
[1726608331896,0.20201967,60387.0,60386.0,0.002]
[1726608332084,0.24256113,60387.0,60386.0,0.002]
[1726608332387,0.20201967,60387.0,60386.0,0.002]
[1726608332589,0.20201997,60387.0,60386.0,0.002]
[1726608332889,0.24256124,60387.0,60386.0,0.002]
[1726608333292,0.32533924,60387.0,60386.0,0.002]
[1726608333488,0.24256124,60387.0,60386.0,0.002]
[1726608335603,1.42213924,60387.0,60386.0,0.002]
[1726608335901,1.63169765,60387.0,60386.0,0.002]
[1726608336217,1.4495572,60387.0,60386.0,0.002]
[1726608336589,1.63169197,60387.0,60386.0,0.002]
[1726608337094,0.97231287,60387.0,60386.0,0.002]
[1726608337285,0.97231387,60387.0,60386.0,0.002]
[1726608337597,0.16557,60382.0,60381.0,0.00248411]
[1726608337792,0.33809206,60382.0,60381.0,0.00248411]
[1726608338901,0.33909206,60382.0,60381.0,0.00348411]
[1726608339693,0.34209206,60382.0,60381.0,0.00448411]
[1726608342197,0.83893206,60382.0,60381.0,0.00448411]
[1726608342396,0.83893206,60382.0,60381.0,0.002]
[1726608342397,1.43893206,60382.0,60381.0,0.002]
[1726608342595,1.85055254,60382.0,60370.0,0.3608]
[1726608342803,0.082797,60373.0,60370.0,0.3608]
[1726608342997,0.21477691,60373.0,60370.0,0.3608]
[1726608344003,0.21577691,60373.0,60372.0,0.00448458]
[1726608346095,0.183797,60373.0,60372.0,0.00448458]
[1726608347106,0.19380329,60373.0,60372.0,0.00448458]
[1726608349300,0.12578799,60373.0,60372.0,0.00448458]
[1726608350194,0.125788,60373.0,60372.0,0.00448458]
[1726608350708,0.16633623,60373.0,60372.0,0.00448458]
[1726608357707,0.26633623,60373.0,60372.0,0.00448458]
[1726608357912,0.19380329,60373.0,60372.0,0.00448458]
[1726608359811,0.27660029,60373.0,60372.0,0.00448458]
[1726608363619,0.66938528,60373.0,60372.0,0.00448458]
[1726608363815,0.75218228,60373.0,60372.0,0.00448458]
[1726608364521,0.79273489,60373.0,60372.0,0.00448458]
[1726608364704,0.75218228,60373.0,60372.0,0.00448458]
[1726608364914,0.75218228,60373.0,60362.0,0.3608]
[1726608364915,0.082811,60363.0,60362.0,0.3608]
[1726608365116,0.182811,60363.0,60362.0,0.3608]
[1726608366216,0.182811,60363.0,60362.0,0.3838]
[1726608370023,0.182811,60363.0,60362.0,0.023]
[1726608370215,0.57560263,60363.0,60362.0,0.023]
[1726608370421,0.62130263,60363.0,60362.0,0.023]
[1726608370624,0.26050263,60363.0,60362.0,0.023]
[1726608371119,0.27016983,60363.0,60362.0,0.023]
[1726608372926,0.31072947,60363.0,60362.0,0.023]
[1726608376717,0.39353921,60363.0,60362.0,0.023]
[1726608377025,0.39353921,60363.0,60358.0,0.00248496]
[1726608377026,0.082816,60359.0,60358.0,0.00248496]
[1726608377224,0.33818201,60359.0,60358.0,0.00248496]
[1726608378126,0.34018201,60359.0,60358.0,0.00348496]
[1726608379930,0.35018201,60359.0,60358.0,0.00448496]
[1726608380929,0.277632,60359.0,60358.0,0.00448496]
[1726608382722,0.721248,60359.0,60358.0,0.00448496]
[1726608382922,0.721248,60359.0,60358.0,0.002]
[1726608386531,1.818288,60359.0,60358.0,0.002]
[1726608387826,1.818288,60359.0,60347.0,0.3608]
[1726608387827,0.082832,60348.0,60347.0,0.3608]
[1726608388028,0.182832,60348.0,60347.0,0.3608]
[1726608389253,0.1329977,60348.0,60339.0,0.49450877]
[1726608389442,0.1,60342.0,60339.0,0.41078577]
[1726608389933,0.082843,60340.0,60339.0,0.36328577]
[1726608390329,0.082843,60340.0,60339.0,0.37128577]
[1726608391431,0.082843,60340.0,60339.0,0.37928577]
[1726608392026,0.083843,60340.0,60339.0,0.37128577]
[1726608392228,0.084843,60340.0,60339.0,0.37728577]
[1726608395131,0.09447557,60340.0,60339.0,0.37728577]
[1726608397836,0.09447557,60340.0,60339.0,0.01648577]
[1726608407638,0.01163257,60340.0,60339.0,0.09932977]
[1726608407847,0.1,60353.0,60339.0,0.09558577]
[1726608408153,0.082829,60350.0,60345.0,0.3608]
[1726608408448,0.0319994,60349.0,60345.0,0.3608]
[1726608408641,0.0319994,60348.0,60345.0,0.3608]
[1726608408838,0.0319994,60347.0,60345.0,0.3608]
[1726608409044,0.082829,60350.0,60345.0,0.3608]
[1726608409346,0.03199855,60349.0,60345.0,0.3608]
[1726608409545,0.03199855,60348.0,60346.0,0.082834]
[1726608409739,0.03199855,60347.0,60346.0,0.082834]
[1726608410346,0.03199847,60347.0,60346.0,0.082834]
[1726608410943,0.03199847,60347.0,60346.0,0.132134]
[1726608410944,0.082833,60347.0,60346.0,0.132134]
[1726608411759,0.082833,60347.0,60346.0,0.135134]
[1726608424758,0.082828,60351.0,60350.0,0.082827]
[1726608425959,0.11482345,60351.0,60350.0,0.082827]
[1726608426466,0.11882345,60351.0,60350.0,0.082827]
[1726608426967,0.03599545,60351.0,60350.0,0.082827]
[1726608427153,0.0359954,60351.0,60350.0,0.443627]
[1726608427473,0.0369954,60351.0,60350.0,0.443627]
[1726608427856,0.0369954,60351.0,60350.0,1.623536]
[1726608427857,0.005,60351.0,60350.0,1.623536]
[1726608429557,0.001,60351.0,60350.0,1.623536]
[1726608429763,0.001,60351.0,60350.0,1.624536]
[1726608430261,0.00248577,60352.0,60350.0,1.624536]
[1726608430463,0.00248577,60352.0,60351.0,0.679907]
[1726608430855,0.00248577,60352.0,60351.0,1.279907]
[1726608432372,0.00348577,60352.0,60351.0,1.281907]
[1726608434870,0.00348577,60352.0,60351.0,1.280907]
[1726608435064,0.00348577,60352.0,60351.0,1.363734]
[1726608435263,0.00348577,60352.0,60351.0,1.413434]
[1726608435862,0.00248577,60352.0,60351.0,1.413434]
[1726608436064,0.00448577,60352.0,60351.0,1.413434]
[1726608437370,0.00448577,60352.0,60351.0,1.412434]
[1726608437564,0.00248577,60352.0,60351.0,1.415434]
[1726608438174,0.00248577,60352.0,60351.0,1.412434]
[1726608438367,0.00248577,60352.0,60351.0,1.415434]
[1726608440677,0.00967996,60362.0,60361.0,0.082814]
[1726608440871,0.1,60372.0,60364.0,0.08281]
[1726608440872,0.082807,60366.0,60364.0,0.08281]
[1726608441070,0.443603,60369.0,60364.0,0.08281]
[1726608441370,0.082803,60369.0,60364.0,0.08281]
[1726608442176,0.082794,60376.0,60364.0,0.08281]
[1726608442177,0.082799,60372.0,60364.0,0.08281]
[1726608443369,0.0506,60365.0,60364.0,1.17981]
[1726608443772,0.0476,60365.0,60364.0,1.17981]
[1726608443979,0.0496,60365.0,60364.0,1.17981]
[1726608444378,0.082794,60376.0,60365.0,0.49696]
[1726608444576,0.1391,60375.0,60372.0,0.4608]
[1726608444780,0.1391,60375.0,60374.0,0.082796]
[1726608445981,0.1481,60375.0,60374.0,0.083796]
[1726608446974,0.1481,60375.0,60374.0,0.183796]
[1726608447482,0.1541,60375.0,60374.0,0.184796]
[1726608448172,0.18608309,60375.0,60374.0,0.184796]
[1726608449379,0.22662935,60375.0,60374.0,0.184796]
[1726608450782,0.18608309,60375.0,60374.0,0.184796]
[1726608451177,0.22662845,60375.0,60374.0,0.184796]
[1726608451379,0.18608309,60375.0,60374.0,0.184796]
[1726608451780,0.18608309,60375.0,60374.0,0.19455696]
[1726608454285,0.1541,60375.0,60374.0,0.184796]
[1726608457480,0.1541,60375.0,60374.0,0.545596]
[1726608463295,0.18608107,60375.0,60374.0,0.545596]
[1726608469090,0.18608107,60375.0,60374.0,0.628392]
[1726608469497,0.18608107,60375.0,60374.0,0.545596]
[1726608469995,0.22662473,60375.0,60374.0,0.545596]
[1726608470200,0.1541,60375.0,60374.0,0.545596]
[1726608472491,0.06,60375.0,60374.0,0.545596]
[1726608472800,0.06,60375.0,60374.0,0.628392]
[1726608473000,0.06,60375.0,60374.0,0.545596]
[1726608473190,0.06,60375.0,60374.0,0.628392]
[1726608473993,0.015,60375.0,60374.0,0.628392]
[1726608479593,0.13834188,60375.0,60374.0,0.628392]
[1726608481299,0.13834188,60375.0,60374.0,0.445596]
[1726608481498,0.17031945,60375.0,60374.0,0.445596]
[1726608481794,0.31693861,60375.0,60374.0,0.445596]
[1726608483790,0.31693861,60375.0,60369.0,0.3608]
[1726608483791,0.31694055,60375.0,60369.0,0.3608]
[1726608484096,0.31694055,60375.0,60363.0,0.3608]
[1726608484097,0.08281,60364.0,60363.0,0.3608]
[1726608484296,0.082811,60363.0,60362.0,0.00248501]
[1726608484503,0.37181143,60363.0,60362.0,0.00248501]
[1726608485199,0.20317549,60363.0,60362.0,0.00248501]
[1726608485397,0.24532805,60363.0,60362.0,0.00248501]
[1726608485597,0.075816,60360.0,60358.0,0.1]
[1726608485802,0.070816,60360.0,60358.0,0.1]
[1726608487001,0.0969,60359.0,60358.0,0.1]
[1726608487909,0.0969,60359.0,60358.0,0.101]
[1726608488101,0.0969,60359.0,60358.0,0.103]
[1726608491301,0.179716,60359.0,60358.0,0.103]
[1726608493605,0.179716,60359.0,60358.0,0.003]
[1726608497110,0.179716,60359.0,60358.0,0.001]
[1726608497314,0.204716,60359.0,60358.0,0.001]
[1726608498012,0.193716,60359.0,60358.0,0.001]
[1726608498215,0.1079,60359.0,60357.0,0.082819]
[1726608498418,0.1219,60359.0,60358.0,0.001]
[1726608498615,0.4827,60359.0,60358.0,0.001]
[1726608498918,0.648332,60359.0,60358.0,0.001]
[1726608500014,1.145372,60359.0,60358.0,0.001]
[1726608500515,0.081822,60355.0,60354.0,0.00248503]
[1726608500711,0.181822,60355.0,60354.0,0.00248503]
[1726608501119,0.180822,60355.0,60354.0,0.00248503]
[1726608501715,0.196822,60355.0,60354.0,0.00348503]
[1726608503919,0.557622,60355.0,60354.0,0.00348503]
[1726608508727,0.196822,60355.0,60354.0,0.00348503]
[1726608508917,0.557622,60355.0,60354.0,0.00348503]
[1726608512115,0.196822,60355.0,60354.0,0.00348503]
[1726608512315,0.557622,60355.0,60354.0,0.00348503]
[1726608512931,0.196822,60355.0,60354.0,0.00348503]
[1726608513233,0.557622,60355.0,60354.0,0.00348503]
[1726608514323,0.457622,60355.0,60354.0,0.00348503]
[1726608514528,0.096822,60355.0,60354.0,0.00348503]
[1726608514728,0.457622,60355.0,60354.0,0.00348503]
[1726608515120,0.096822,60355.0,60354.0,0.00348503]
[1726608515325,0.457622,60355.0,60354.0,0.00348503]
[1726608519634,0.48961739,60355.0,60354.0,0.00348503]
[1726608521532,0.12881739,60355.0,60354.0,0.00348503]
[1726608521739,0.48961739,60355.0,60354.0,0.00348503]
[1726608523543,0.457622,60355.0,60354.0,0.00348503]
[1726608526132,0.096822,60355.0,60354.0,0.00348503]
[1726608526435,0.457622,60355.0,60354.0,0.00348503]
[1726608528432,0.096822,60355.0,60354.0,0.00348503]
[1726608528739,0.457622,60355.0,60354.0,0.00348503]
[1726608529637,0.096822,60355.0,60354.0,0.00348503]
[1726608530239,0.457622,60355.0,60354.0,0.00348503]
[1726608530541,0.48961741,60355.0,60354.0,0.00348503]
[1726608533338,0.48961747,60355.0,60354.0,0.00348503]
[1726608533539,0.12881747,60355.0,60354.0,0.00348503]
[1726608533740,0.48961747,60355.0,60354.0,0.00348503]
[1726608535840,0.12881747,60355.0,60354.0,0.00348503]
[1726608536044,0.48961747,60355.0,60354.0,0.00348503]
[1726608538346,0.48961746,60355.0,60354.0,0.00348503]
[1726608538548,0.53017933,60355.0,60354.0,0.00348503]
[1726608538745,0.16937933,60355.0,60354.0,0.00348503]
[1726608538943,0.53017933,60355.0,60354.0,0.00348503]
[1726608540748,0.16937933,60355.0,60354.0,0.00348503]
[1726608541047,0.58102091,60355.0,60354.0,0.00348503]
[1726608541242,0.53017933,60355.0,60354.0,0.00348503]
[1726608541650,0.5301792,60355.0,60354.0,0.00348503]
[1726608542046,0.1693792,60355.0,60354.0,0.00348503]
[1726608542239,0.5301792,60355.0,60354.0,0.00348503]
[1726608542941,0.58102065,60355.0,60354.0,0.00348503]
[1726608543142,0.5301792,60355.0,60354.0,0.00348503]
[1726608545549,0.48961741,60355.0,60354.0,0.00348503]
[1726608545948,0.12881741,60355.0,60354.0,0.00348503]
[1726608546454,0.48961741,60355.0,60354.0,0.00348503]
[1726608549054,0.12881741,60355.0,60354.0,0.00348503]
[1726608549257,0.48961741,60355.0,60354.0,0.00348503]
[1726608550551,0.12881741,60355.0,60354.0,0.00348503]
[1726608550948,0.48961741,60355.0,60354.0,0.00348503]
[1726608556462,0.48961731,60355.0,60354.0,0.00348503]
[1726608558052,0.12881731,60355.0,60354.0,0.00348503]
[1726608558257,0.00987839,60360.0,60354.0,0.26913103]
[1726608558458,0.082807,60366.0,60361.0,0.082813]
[1726608558752,0.4208,60370.0,60359.0,0.1]
[1726608558953,0.4208,60370.0,60355.0,0.04917149]
[1726608558954,0.1,60360.0,60355.0,0.04917149]
[1726608559255,0.0114984,60366.0,60354.0,0.001]
[1726608559256,0.082822,60355.0,60354.0,0.001]
[1726608559463,0.61189679,60355.0,60354.0,0.001]
[1726608559651,1.21189679,60355.0,60354.0,0.001]
[1726608560361,1.22291501,60355.0,60354.0,0.001]
[1726608560757,1.26347747,60355.0,60354.0,0.001]
[1726608560958,1.26347862,60355.0,60354.0,0.001]
[1726608561256,1.26347862,60355.0,60347.0,0.3608]
[1726608561257,0.081825,60354.0,60348.0,0.082831]
[1726608561562,0.03199594,60353.0,60348.0,0.082831]
[1726608561762,0.03099594,60352.0,60348.0,0.082831]
[1726608561963,0.081825,60354.0,60348.0,0.082831]
[1726608562452,0.082826,60353.0,60348.0,0.082831]
[1726608562648,0.082826,60353.0,60348.0,0.130931]
[1726608562854,0.082827,60352.0,60348.0,0.130931]
[1726608563266,0.082827,60352.0,60348.0,0.131931]
[1726608563851,0.082827,60352.0,60348.0,0.083831]
[1726608564060,0.082827,60352.0,60348.0,0.001]
[1726608564061,0.08283,60349.0,60348.0,0.001]
[1726608564457,0.57995,60349.0,60348.0,0.001]
[1726608564657,0.57995,60349.0,60347.0,0.3608]
[1726608564961,0.08283,60349.0,60347.0,0.3608]
[1726608565562,0.08483,60349.0,60347.0,0.3608]
[1726608565760,0.082832,60348.0,60347.0,0.3608]
[1726608567662,0.082832,60348.0,60347.0,0.3628]
[1726608567663,0.083832,60348.0,60347.0,0.3628]
[1726608567858,0.082825,60353.0,60347.0,0.3628]
[1726608568061,0.082823,60355.0,60352.0,0.082825]
[1726608568657,0.09139754,60354.0,60352.0,0.082825]
[1726608568859,0.09139754,60353.0,60352.0,0.082825]
[1726608569265,0.14904964,60353.0,60352.0,0.082825]
[1726608569467,0.24044718,60353.0,60352.0,0.082825]
[1726608570664,0.32327218,60353.0,60352.0,0.082825]
[1726608570865,0.32327218,60353.0,60352.0,0.083825]
[1726608571460,0.32327218,60353.0,60352.0,0.082825]
[1726608571663,0.33327218,60353.0,60352.0,0.083825]
[1726608571966,0.36526557,60353.0,60352.0,0.083825]
[1726608572964,0.31442729,60353.0,60352.0,0.083825]
[1726608573163,0.16537765,60353.0,60352.0,0.083825]
[1726608575667,0.092825,60353.0,60352.0,0.083825]
[1726608583676,0.2162104,60353.0,60352.0,0.083825]
[1726608585479,0.21621799,60353.0,60352.0,0.083825]
[1726608587885,0.16537887,60353.0,60352.0,0.083825]
[1726608588583,0.21621681,60353.0,60352.0,0.083825]
[1726608589179,0.092825,60353.0,60352.0,0.083825]
[1726608589388,0.21621428,60353.0,60352.0,0.083825]
[1726608589779,0.13338928,60353.0,60352.0,0.083825]
[1726608590787,0.01,60353.0,60352.0,0.083825]
[1726608591480,0.092825,60353.0,60352.0,0.083825]
[1726608596783,0.092825,60353.0,60352.0,0.183825]
[1726608598783,0.092825,60353.0,60352.0,0.083825]
[1726608602490,0.12481782,60353.0,60352.0,0.083825]
[1726608602688,0.092825,60353.0,60352.0,0.083825]
[1726608602987,0.12481782,60353.0,60352.0,0.083825]
[1726608603394,0.092825,60353.0,60352.0,0.083825]
[1726608604494,0.12481783,60353.0,60352.0,0.083825]
[1726608604693,0.092825,60353.0,60352.0,0.083825]
[1726608605892,0.2162137,60353.0,60352.0,0.083825]
[1726608606282,0.29276814,60353.0,60352.0,0.083825]
[1726608606486,0.36531949,60353.0,60352.0,0.083825]
[1726608607497,0.2162137,60353.0,60352.0,0.083825]
[1726608609689,0.24193923,60353.0,60352.0,0.083825]
[1726608610085,0.36532689,60353.0,60352.0,0.083825]
[1726608611194,0.21621266,60353.0,60352.0,0.083825]
[1726608612891,0.16537574,60353.0,60352.0,0.083825]
[1726608613892,0.092825,60353.0,60352.0,0.083825]
[1726608616294,0.082833,60347.0,60337.0,0.04917582]
[1726608616502,0.3608,60341.0,60333.0,0.04917582]
[1726608616688,0.082843,60340.0,60332.0,0.49282882]
[1726608616992,0.082843,60340.0,60332.0,0.3608]
[1726608617587,0.082843,60340.0,60339.0,0.00948595]
[1726608617787,0.082843,60340.0,60339.0,0.01748595]
[1726608618297,0.083843,60340.0,60339.0,0.01748595]
[1726608619401,0.130343,60340.0,60339.0,0.01748595]
[1726608619696,0.131343,60340.0,60339.0,0.01748595]
[1726608620201,0.50341704,60340.0,60339.0,0.01748595]
[1726608620795,0.53542033,60340.0,60339.0,0.01748595]
[1726608623396,0.17462033,60340.0,60339.0,0.01748595]
[1726608623599,0.53542033,60340.0,60339.0,0.01748595]
[1726608625601,0.17462033,60340.0,60339.0,0.01748595]
[1726608625794,0.53542033,60340.0,60339.0,0.01748595]
[1726608626704,0.50341704,60340.0,60339.0,0.01748595]
[1726608626904,0.14261704,60340.0,60339.0,0.01748595]
[1726608627301,0.50341704,60340.0,60339.0,0.01748595]
[1726608628303,0.14261704,60340.0,60339.0,0.01748595]
[1726608628494,0.50341704,60340.0,60339.0,0.01748595]
[1726608629097,0.14261704,60340.0,60339.0,0.01748595]
[1726608629507,0.50341704,60340.0,60339.0,0.01748595]
[1726608630204,0.14261704,60340.0,60339.0,0.01748595]
[1726608630705,0.50341704,60340.0,60339.0,0.01748595]
[1726608631099,0.58626004,60340.0,60339.0,0.01748595]
[1726608633191,0.22546004,60340.0,60339.0,0.01748595]
[1726608633595,0.58626004,60340.0,60339.0,0.01748595]
[1726608633802,0.22546004,60340.0,60339.0,0.01748595]
[1726608633999,0.58626004,60340.0,60339.0,0.01748595]
[1726608634612,0.22546004,60340.0,60339.0,0.01748595]
[1726608635407,0.58626004,60340.0,60339.0,0.01748595]
[1726608636107,0.22546004,60340.0,60339.0,0.01748595]
[1726608636410,0.25746325,60340.0,60339.0,0.01748595]
[1726608636706,0.61826325,60340.0,60339.0,0.01748595]
[1726608637213,0.25746325,60340.0,60339.0,0.01748595]
[1726608637599,0.61826325,60340.0,60339.0,0.01748595]
[1726608639096,0.6182634,60340.0,60339.0,0.01748595]
[1726608642511,0.65883547,60340.0,60339.0,0.01748595]
[1726608643010,0.65883547,60340.0,60339.0,0.015]
[1726608643201,0.29803547,60340.0,60339.0,0.015]
[1726608643403,0.65883547,60340.0,60339.0,0.015]
[1726608643607,0.082862,60327.0,60323.0,0.459]
[1726608643900,0.082862,60326.0,60323.0,0.459]
[1726608644505,0.082862,60326.0,60323.0,0.541866]
[1726608645211,0.082862,60326.0,60325.0,0.1]
[1726608645398,0.082862,60326.0,60324.0,0.082864]
[1726608646401,0.09506525,60326.0,60324.0,0.082864]
[1726608646602,0.09606525,60326.0,60324.0,0.090864]
[1726608648413,0.01320325,60326.0,60325.0,0.082863]
[1726608649614,0.01220325,60326.0,60325.0,0.082863]
[1726608649812,0.01320325,60326.0,60325.0,0.082863]
[1726608650206,0.09606525,60326.0,60325.0,0.082863]
[1726608651717,0.082865,60324.0,60323.0,0.0982]
[1726608651926,0.082865,60324.0,60323.0,0.181066]
[1726608652918,0.083865,60324.0,60323.0,0.181066]
[1726608653315,0.084865,60324.0,60323.0,0.189066]
[1726608658922,0.11687196,60324.0,60323.0,0.189066]
[1726608659819,0.15744839,60324.0,60323.0,0.090866]
[1726608660612,0.11687196,60324.0,60323.0,0.090866]
[1726608663717,0.15744854,60324.0,60323.0,0.008]
[1726608666028,0.084865,60324.0,60323.0,0.008]
[1726608666734,1.26505,60324.0,60323.0,0.008]
[1726608667130,1.34496248,60324.0,60323.0,0.008]
[1726608667532,0.082871,60319.0,60318.0,0.00248679]
[1726608667732,0.57568348,60319.0,60318.0,0.00248679]
[1726608667932,0.62338348,60319.0,60318.0,0.00248679]
[1726608668426,0.62338348,60319.0,60305.0,0.443689]
[1726608668733,0.1,60310.0,60305.0,0.443689]
[1726608668933,0.175884,60310.0,60305.0,0.443689]
[1726608669530,0.171884,60310.0,60305.0,0.443689]
[1726608670329,0.172884,60310.0,60305.0,0.449689]
[1726608671326,0.172884,60310.0,60306.0,0.082889]
[1726608671525,0.172884,60310.0,60307.0,0.082888]
[1726608671723,0.173884,60310.0,60307.0,0.082888]
[1726608673029,0.173884,60310.0,60307.0,0.443688]
[1726608673234,0.18528083,60310.0,60307.0,0.443688]
[1726608673434,0.0477,60309.0,60307.0,0.443688]
[1726608673931,0.0477,60309.0,60308.0,0.082887]
[1726608675120,0.0487,60309.0,60308.0,0.082887]
[1726608675733,0.0497,60309.0,60308.0,0.082887]
[1726608678534,0.002,60309.0,60308.0,0.165774]
[1726608678733,0.55277323,60328.0,60322.0,0.082867]
[1726608678734,0.00248707,60323.0,60322.0,0.082867]
[1726608678935,0.00248707,60323.0,60322.0,0.443667]
[1726608679936,0.00548707,60323.0,60322.0,0.443667]
[1726608685835,0.00548707,60323.0,60322.0,0.082867]
[1726608686032,0.00548707,60323.0,60322.0,0.443667]
[1726608688940,0.00548707,60323.0,60322.0,0.082867]
[1726608689247,0.00548707,60323.0,60322.0,0.443667]
[1726608690935,0.00548707,60323.0,60322.0,0.526534]
[1726608696041,0.003,60323.0,60322.0,0.526534]
[1726608696252,0.07558499,60323.0,60322.0,0.526534]
[1726608704154,0.003,60323.0,60322.0,0.443667]
[1726608704751,0.003,60323.0,60322.0,0.082867]
[1726608705355,0.003,60323.0,60322.0,0.443667]
[1726608710956,0.03500769,60323.0,60322.0,0.443667]
[1726608711165,0.03500769,60323.0,60322.0,0.082867]
[1726608711462,0.03500769,60323.0,60322.0,0.443667]
[1726608711655,0.07558505,60323.0,60322.0,0.443667]
[1726608712661,0.12644601,60323.0,60322.0,0.443667]
[1726608712963,0.12644601,60323.0,60322.0,0.082867]
[1726608713159,0.12644601,60323.0,60322.0,0.443667]
[1726608716060,0.12644601,60323.0,60322.0,0.082867]
[1726608716270,0.12644601,60323.0,60322.0,0.443667]
[1726608718057,0.003,60323.0,60322.0,0.443667]
[1726608718859,0.003,60323.0,60322.0,0.082867]
[1726608719069,0.003,60323.0,60322.0,0.443667]
[1726608726172,0.03500769,60323.0,60322.0,0.443667]
[1726608726483,0.18424545,60323.0,60322.0,0.443667]
[1726608726778,0.12644602,60323.0,60322.0,0.543667]
[1726608727187,0.27568141,60323.0,60322.0,0.543667]
[1726608729696,0.27568168,60323.0,60322.0,0.543667]
[1726608730080,0.12644629,60323.0,60322.0,2.043667]
[1726608730690,0.12644629,60323.0,60322.0,0.543667]
[1726608731296,0.12644629,60323.0,60322.0,3.223854]
[1726608731686,0.07558521,60323.0,60322.0,3.306721]
[1726608731882,0.07558521,60323.0,60322.0,3.223854]
[1726608732689,0.07558521,60323.0,60322.0,1.723854]
[1726608733285,0.03500776,60323.0,60322.0,1.723854]
[1726608734091,0.00248648,60329.0,60328.0,0.082859]
[1726608734398,0.00248648,60329.0,60328.0,0.543659]
[1726608735697,0.00648648,60329.0,60328.0,0.543659]
[1726608736383,0.00648648,60329.0,60328.0,0.5549477]
[1726608736791,0.00648648,60329.0,60328.0,0.6378067]
[1726608737188,0.01548648,60329.0,60328.0,0.6378067]
[1726608737899,0.00848648,60329.0,60328.0,0.6378067]
[1726608738286,0.00648648,60329.0,60328.0,0.6378067]
[1726608738490,0.00348648,60329.0,60328.0,0.6388067]
[1726608740004,0.00348648,60329.0,60328.0,0.4559477]
[1726608740295,0.00348648,60329.0,60328.0,0.444659]
[1726608740501,0.00348648,60329.0,60328.0,0.3618]
[1726608740502,0.08534448,60329.0,60328.0,0.3618]
[1726608740710,0.08634448,60329.0,60328.0,0.3618]
[1726608741092,0.11834978,60329.0,60328.0,0.3618]
[1726608741699,0.12634978,60329.0,60328.0,0.3618]
[1726608742000,0.09434448,60329.0,60328.0,0.3638]
[1726608742701,0.09434448,60329.0,60328.0,0.3608]
[1726608742910,0.09934448,60329.0,60328.0,0.3608]
[1726608744793,0.082863,60326.0,60324.0,0.082864]
[1726608744992,0.0467,60325.0,60324.0,0.082864]
[1726608745200,0.0467,60325.0,60324.0,0.443664]
[1726608746490,0.0507,60325.0,60324.0,0.443664]
[1726608747596,0.133563,60325.0,60324.0,0.443664]
[1726608749200,0.16556909,60325.0,60324.0,0.443664]
[1726608749797,0.16556909,60325.0,60324.0,0.3608]
[1726608749996,0.20614624,60325.0,60324.0,0.3608]
[1726608750596,0.082869,60323.0,60322.0,0.082867]
[1726608750795,0.11487509,60323.0,60322.0,0.082867]
[1726608750998,0.15545301,60323.0,60322.0,0.082867]
[1726608751800,0.15545301,60323.0,60322.0,0.084867]
[1726608753304,0.11687509,60323.0,60322.0,0.002]
[1726608754903,0.12780909,60323.0,60322.0,0.002]
[1726608755802,0.12780909,60323.0,60322.0,0.084867]
[1726608756308,0.095803,60323.0,60322.0,0.084867]
[1726608757194,0.095803,60323.0,60322.0,0.002]
[1726608757598,0.095803,60323.0,60322.0,0.084867]
[1726608767009,0.095803,60323.0,60322.0,0.002]
[1726608767216,0.12781189,60323.0,60322.0,0.002]
[1726608768701,0.12781205,60323.0,60322.0,0.002]
[1726608769705,0.12436005,60323.0,60322.0,0.002]
[1726608771202,0.092351,60323.0,60322.0,0.002]
[1726608786317,0.092351,60323.0,60322.0,0.084867]
[1726608786318,0.1243599,60323.0,60322.0,0.084867]
[1726608792113,0.12435989,60323.0,60322.0,0.084867]
[1726608793225,0.092351,60323.0,60322.0,0.084867]